bitfinex/quotes_SOLUSD_20230105
["timestamp","ask_amount","ask_price","bid_price","bid_amount"]
[1672935766978,20.0,13.223,13.22,2.63071664]
[1672935771075,56.75,13.227,13.22,2.63071664]
[1672935771396,56.75,13.227,13.22,19.63071664]
[1672935771590,56.74,13.228,13.22,19.63071664]
[1672935771797,20.0,13.227,13.22,2.63071664]
[1672935772337,76.74,13.229,13.22,19.63071664]
[1672935773720,56.74,13.229,13.22,19.63071664]
[1672935774320,187.685,13.23,13.22,19.63071664]
[1672935774543,130.955,13.23,13.22,19.63071664]
[1672935775470,56.74,13.229,13.22,19.63071664]
[1672935775895,130.955,13.23,13.22,19.63071664]
[1672935776123,13.0,13.23,13.22,19.63071664]
[1672935777920,56.72,13.233,13.22,19.63071664]
[1672935778139,56.72,13.234,13.22,19.63071664]
[1672935778454,20.0,13.233,13.22,19.63071664]
[1672935778641,20.0,13.231,13.22,19.63071664]
[1672935779280,56.72,13.232,13.22,19.63071664]
[1672935782771,20.0,13.232,13.22,19.63071664]
[1672935782956,56.73,13.231,13.22,19.63071664]
[1672935783929,56.72,13.232,13.22,19.63071664]
[1672935784232,56.72,13.233,13.22,19.63071664]
[1672935784550,56.72,13.234,13.222,20.0]
[1672935784758,56.69,13.239,13.223,97.32447239]
[1672935784973,20.0,13.238,13.224,20.0]
[1672935785170,56.7,13.237,13.225,17.0]
[1672935786438,20.0,13.238,13.225,17.0]
[1672935786741,56.7,13.237,13.225,17.0]
[1672935786954,56.7,13.238,13.225,39.41737149]
[1672935787362,56.69,13.239,13.226,20.0]
[1672935787577,56.69,13.239,13.227,17.0]
[1672935789074,56.69,13.239,13.229,20.0]
[1672935789599,56.69,13.239,13.23,17.0]
[1672935790649,56.69,13.239,13.23,39.41737149]
[1672935790846,56.69,13.241,13.23,39.41737149]
[1672935794648,56.68,13.243,13.23,39.41737149]
[1672935794851,56.68,13.243,13.231,20.0]
[1672935795056,56.68,13.243,13.232,17.0]
[1672935796423,56.68,13.243,13.232,39.41737149]
[1672935797880,56.68,13.243,13.23,225.2129]
[1672935798516,13.01,13.24,13.23,108.5416]
[1672935798956,56.69,13.239,13.23,108.5416]
[1672935800104,56.69,13.239,13.231,17.0]
[1672935800326,56.69,13.239,13.226,56.75]
[1672935800513,20.0,13.238,13.225,116.089]
[1672935800721,56.7,13.237,13.225,116.089]
[1672935801994,56.7,13.237,13.226,17.0]
[1672935802196,56.69,13.239,13.226,17.0]
[1672935802406,56.69,13.239,13.227,42.41737149]
[1672935802630,56.69,13.239,13.228,17.0]
[1672935803244,56.69,13.239,13.228,39.41737149]
[1672935803453,56.68,13.242,13.23,20.0]
[1672935803666,20.0,13.243,13.231,17.0]
[1672935803667,56.68,13.243,13.231,17.0]
[1672935803893,56.67,13.245,13.231,96.14737149]
[1672935804203,56.67,13.245,13.232,22.41737149]
[1672935804417,56.67,13.245,13.234,20.0]
[1672935804619,56.67,13.245,13.235,17.0]
[1672935804832,56.67,13.245,13.233,17.0]
[1672935805889,56.68,13.243,13.233,17.0]
[1672935806082,56.68,13.243,13.232,17.0]
[1672935806505,20.0,13.242,13.232,17.0]
[1672935806720,56.69,13.241,13.232,17.0]
[1672935807367,20.0,13.24,13.232,17.0]
[1672935808091,13.01,13.24,13.232,17.0]
[1672935810194,56.66,13.247,13.233,56.72]
[1672935810406,56.66,13.248,13.234,57.0]
[1672935810617,56.65,13.249,13.234,57.0]
[1672935810826,20.0,13.248,13.234,57.0]
[1672935811039,56.66,13.247,13.234,57.0]
[1672935811265,56.66,13.247,13.234,37.0]
[1672935811762,56.66,13.247,13.235,20.0]
[1672935811964,20.0,13.248,13.236,17.0]
[1672935812176,56.66,13.247,13.236,17.0]
[1672935812919,20.0,13.247,13.236,17.0]
[1672935813558,56.66,13.248,13.236,17.0]
[1672935813763,56.66,13.248,13.236,20.0]
[1672935814086,56.66,13.248,13.237,17.0]
[1672935815342,56.66,13.248,13.236,17.0]
[1672935815873,56.65,13.249,13.236,17.0]
[1672935816063,55.15,13.249,13.237,119.8504]
[1672935816273,55.15,13.249,13.238,17.0]
[1672935817857,77.56737149,13.249,13.238,17.0]
[1672935818702,55.15,13.249,13.238,17.0]
[1672935819843,53.65,13.249,13.238,17.0]
[1672935820486,69.65,13.25,13.238,17.0]
[1672935820914,92.06737149,13.25,13.238,17.0]
[1672935822913,20.0,13.249,13.238,17.0]
[1672935823117,56.66,13.248,13.238,17.0]
[1672935823324,20.0,13.247,13.238,17.0]
[1672935823745,56.66,13.248,13.238,17.0]
[1672935824366,56.66,13.248,13.237,119.8504]
[1672935825212,20.0,13.248,13.237,119.8504]
[1672935825421,56.66,13.247,13.238,17.0]
[1672935825955,20.0,13.248,13.237,119.8504]
[1672935826294,20.0,13.246,13.237,119.8504]
[1672935826804,56.66,13.247,13.237,119.8504]
[1672935827123,20.0,13.248,13.237,119.8504]
[1672935827432,20.0,13.248,13.238,17.0]
[1672935828273,56.66,13.247,13.238,17.0]
[1672935828487,20.0,13.246,13.238,17.0]
[1672935829114,99.07737149,13.248,13.238,17.0]
[1672935830691,56.66,13.248,13.238,17.0]
[1672935830904,20.0,13.248,13.238,17.0]
[1672935831953,20.0,13.248,13.227,54.89638898]
[1672935831954,76.66,13.247,13.227,54.89638898]
[1672935832163,20.0,13.246,13.228,111.8898]
[1672935832478,20.0,13.244,13.228,111.8898]
[1672935832701,56.68,13.243,13.229,56.74]
[1672935834066,56.68,13.243,13.23,136.12017149]
[1672935834278,112.216,13.244,13.232,20.0]
[1672935834702,20.0,13.243,13.233,17.0]
[1672935834900,20.0,13.243,13.23,113.7028]
[1672935835444,56.68,13.242,13.23,113.7028]
[1672935835650,76.68,13.243,13.23,113.7028]
[1672935836055,13.01,13.24,13.23,113.7028]
[1672935836489,13.01,13.24,13.224,56.76]
[1672935836700,13.01,13.24,13.222,39.13455948]
[1672935836701,76.69,13.239,13.221,56.77]
[1672935836893,354.64004062,13.239,13.221,3.56447239]
[1672935837100,354.64004062,13.239,13.222,56.77]
[1672935837101,95.44212472,13.238,13.222,56.77]
[1672935837315,76.7,13.237,13.221,3.56447239]
[1672935837629,13.01,13.23,13.22,60.34447239]
[1672935838478,13.01,13.23,13.221,17.0]
[1672935838814,20.0,13.234,13.222,3.56447239]
[1672935838993,20.0,13.232,13.221,3.56447239]
[1672935839649,56.72,13.233,13.221,23.56447239]
[1672935839835,186.8611,13.234,13.221,3.56447239]
[1672935840045,186.8611,13.234,13.221,20.56447239]
[1672935842799,239.88585323,13.234,13.221,3.56447239]
[1672935843212,239.88585323,13.234,13.22,60.34447239]
[1672935843738,239.88585323,13.234,13.22,3.56447239]
[1672935844567,13.01,13.23,13.22,3.56447239]
[1672935845737,239.88585323,13.234,13.22,20.56447239]
[1672935846377,239.88585323,13.234,13.22,3.56447239]
[1672935848285,239.88585323,13.234,13.22,20.56447239]
[1672935850481,239.88585323,13.234,13.22,3.56447239]
[1672935851096,13.01,13.23,13.22,3.56447239]
[1672935851305,56.74,13.229,13.22,3.56447239]
[1672935851520,20.0,13.228,13.22,3.56447239]
[1672935851737,56.75,13.227,13.22,3.56447239]
[1672935851931,20.0,13.226,13.22,3.56447239]
[1672935852991,76.75,13.225,13.22,2.63071664]
[1672935853204,20.0,13.224,13.22,2.63071664]
[1672935853828,56.75,13.225,13.22,2.63071664]
[1672935854047,56.75,13.227,13.22,2.63071664]
[1672935854456,40.0,13.226,13.22,2.63071664]
[1672935854668,20.0,13.224,13.22,2.63071664]
[1672935857311,20.0,13.222,13.219,0.0035002]
[1672935857534,20.0,13.22,13.21,0.98058617]
[1672935857716,20.0,13.218,13.21,0.98058617]
[1672935858047,56.79,13.217,13.21,0.98058617]
[1672935858240,12.88,13.22,13.21,0.98058617]
[1672935858447,56.77,13.221,13.21,0.98058617]
[1672935858448,56.76,13.223,13.212,89.60957389]
[1672935858777,56.75,13.227,13.212,89.60957389]
[1672935858998,76.75,13.225,13.213,17.0]
[1672935860135,20.0,13.224,13.213,17.0]
[1672935860788,20.0,13.224,13.214,2.51218574]
[1672935861608,56.75,13.225,13.214,24.63437803]
[1672935861829,56.74,13.228,13.216,20.0]
[1672935862036,56.74,13.228,13.217,2.51218574]
[1672935862253,56.74,13.228,13.217,19.51218574]
[1672935864244,20.0,13.228,13.217,19.51218574]
[1672935864457,56.75,13.227,13.217,19.51218574]
[1672935864667,20.0,13.226,13.217,19.51218574]
[1672935865076,56.75,13.227,13.217,19.51218574]
[1672935865302,76.74,13.228,13.217,19.51218574]
[1672935866791,99.15737149,13.228,13.217,19.51218574]
[1672935867309,76.74,13.228,13.217,19.51218574]
[1672935868333,76.74,13.228,13.217,2.51218574]
[1672935869601,20.0,13.226,13.214,2.51218574]
[1672935869834,76.75,13.225,13.213,19.51218574]
[1672935870142,20.0,13.224,13.213,19.51218574]
[1672935872681,76.75,13.225,13.213,19.51218574]
[1672935873071,12.96,13.22,13.213,2.51218574]
[1672935873923,20.0,13.218,13.213,2.51218574]
[1672935874137,20.0,13.218,13.213,0.99860699]
[1672935874761,20.0,13.218,13.212,67.4873816]
[1672935876650,56.78,13.219,13.213,17.0]
[1672935878437,12.96,13.22,13.213,17.0]
[1672935878647,32.96,13.22,13.213,17.0]
[1672935878884,56.78,13.219,13.212,67.4873816]
[1672935879080,20.0,13.218,13.212,67.4873816]
[1672935879492,56.79,13.217,13.212,67.4873816]
[1672935879697,20.0,13.216,13.212,67.4873816]
[1672935879913,20.0,13.214,13.212,67.4873816]
[1672935881281,64.83,13.22,13.212,67.4873816]
[1672935881488,56.78,13.219,13.212,67.4873816]
[1672935881701,20.0,13.218,13.212,67.4873816]
[1672935885928,56.79,13.217,13.212,67.4873816]
[1672935886339,76.78,13.218,13.212,67.4873816]
[1672935886766,56.78,13.218,13.212,67.4873816]
[1672935886968,20.0,13.219,13.212,67.4873816]
[1672935888011,141.64,13.22,13.212,67.4873816]
[1672935889705,121.64,13.22,13.212,67.4873816]
[1672935890032,121.64,13.22,13.213,17.0]
[1672935890231,12.92,13.22,13.213,17.0]
[1672935890975,12.92,13.22,13.212,67.4873816]
[1672935891379,183.9802,13.23,13.213,20.0]
[1672935891588,183.9802,13.23,13.214,56.8]
[1672935891796,183.9802,13.23,13.213,56.81]
[1672935892010,20.0,13.227,13.214,20.93504785]
[1672935892221,56.75,13.226,13.215,17.0]
[1672935892442,20.0,13.225,13.215,17.0]
[1672935892644,20.0,13.224,13.215,17.0]
[1672935894004,20.0,13.225,13.214,17.0]
[1672935894442,20.0,13.225,13.214,37.3658407]
[1672935894977,20.0,13.226,13.214,37.3658407]
[1672935895889,13.01,13.22,13.212,67.4873816]
[1672935897716,13.01,13.22,13.213,17.0]
[1672935898727,13.01,13.22,13.212,67.4873816]
[1672935899480,33.01,13.22,13.212,67.4873816]
[1672935901369,20.0,13.219,13.212,67.4873816]
[1672935901590,56.78,13.218,13.212,67.4873816]
[1672935901800,20.0,13.217,13.212,67.4873816]
[1672935902429,20.0,13.216,13.212,67.4873816]
[1672935909891,40.0,13.217,13.212,67.4873816]
[1672935912202,20.0,13.217,13.212,67.4873816]
[1672935912820,76.79,13.217,13.212,67.4873816]
[1672935913678,20.0,13.217,13.212,67.4873816]
[1672935914103,56.78,13.218,13.212,67.4873816]
[1672935914622,20.0,13.218,13.212,67.4873816]
[1672935917139,42.41737149,13.218,13.212,67.4873816]
[1672935918943,22.41737149,13.218,13.212,67.4873816]
[1672935924080,141.95,13.22,13.212,67.4873816]
[1672935924299,121.95,13.22,13.212,67.4873816]
[1672935924509,69.78,13.22,13.212,67.4873816]
[1672935925122,92.19737149,13.22,13.212,67.4873816]
[1672935925333,13.0,13.22,13.212,67.4873816]
[1672935927977,13.0,13.22,13.213,17.0]
[1672935939564,6.5,13.22,13.213,17.0]
[1672935942085,56.75,13.226,13.214,20.0]
[1672935942293,20.0,13.225,13.215,17.0]
[1672935942607,20.0,13.225,13.215,37.3658407]
[1672935943017,20.0,13.226,13.215,37.3658407]
[1672935944802,40.0,13.226,13.215,37.3658407]
[1672935946390,20.0,13.226,13.215,37.3658407]
[1672935949439,20.0,13.226,13.217,20.0]
[1672935949649,20.0,13.226,13.218,17.0]
[1672935950054,56.74,13.229,13.218,20.3658407]
[1672935950268,6.49,13.23,13.219,73.78]
[1672935950475,6.49,13.23,13.22,20.0]
[1672935950681,6.49,13.23,13.221,17.0]
[1672935950911,6.49,13.23,13.222,20.0]
[1672935951126,6.49,13.23,13.223,17.0]
[1672935954582,6.49,13.23,13.223,20.0]
[1672935954806,6.49,13.23,13.224,17.0]
[1672935955022,6.49,13.23,13.222,17.0]
[1672935955324,6.49,13.23,13.221,56.77]
[1672935955541,6.49,13.23,13.217,56.79]
[1672935955754,20.0,13.228,13.217,56.79]
[1672935956155,20.0,13.228,13.216,173.9952]
[1672935956480,20.0,13.227,13.213,56.81]
[1672935956680,56.75,13.226,13.213,56.81]
[1672935956888,20.0,13.224,13.212,144.6632223]
[1672935957221,20.0,13.224,13.212,124.2973816]
[1672935957642,112.1909,13.223,13.212,124.2973816]
[1672935957826,20.0,13.222,13.212,124.2973816]
[1672935959213,112.1909,13.223,13.212,124.2973816]
[1672935960149,112.1909,13.223,13.213,17.0]
[1672935964452,20.0,13.222,13.213,17.0]
[1672935964870,12.97,13.22,13.212,67.4873816]
[1672935965295,56.78,13.219,13.212,67.4873816]
[1672935965715,20.0,13.218,13.212,67.4873816]
[1672935966033,20.0,13.217,13.212,67.4873816]
[1672935966358,76.79,13.217,13.212,67.4873816]
[1672935966570,20.0,13.216,13.212,67.4873816]
[1672935966890,20.0,13.215,13.212,67.4873816]
[1672935973283,20.0,13.215,13.21,0.98058617]
[1672935973494,60.13699201,13.212,13.188,115.3973]
[1672935973717,12.92,13.2,13.194,119.5561]
[1672935973931,12.92,13.2,13.188,115.3973]
[1672935974123,12.92,13.2,13.189,76.91]
[1672935975387,20.0,13.206,13.19,20.0]
[1672935975601,20.0,13.206,13.191,76.9]
[1672935975814,126.72210557,13.206,13.191,76.9]
[1672935976026,22.41737149,13.205,13.191,76.9]
[1672935976224,20.0,13.204,13.191,76.9]
[1672935976645,12.96,13.2,13.191,56.9]
[1672935976855,12.96,13.2,13.189,56.91]
[1672935978335,12.96,13.2,13.19,20.0]
[1672935978553,12.96,13.2,13.191,56.9]
[1672935978766,12.96,13.2,13.192,17.0]
[1672935979710,12.96,13.2,13.193,56.89]
[1672935979912,104.30473408,13.204,13.193,56.89]
[1672935979913,56.83,13.208,13.194,17.0]
[1672935980129,20.0,13.207,13.195,56.88]
[1672935980443,104.30473408,13.207,13.195,56.88]
[1672935980654,104.30473408,13.207,13.194,125.8614]
[1672935980845,104.30473408,13.207,13.195,56.88]
[1672935981058,104.30473408,13.207,13.196,17.0]
[1672935981495,20.0,13.207,13.196,17.0]
[1672935982424,20.0,13.207,13.197,56.87]
[1672935982758,20.0,13.207,13.198,17.0]
[1672935983364,20.0,13.207,13.197,17.0]
[1672935984969,42.41737149,13.207,13.196,56.88]
[1672935985292,99.24737149,13.207,13.195,56.88]
[1672935985502,99.24737149,13.207,13.196,17.0]
[1672935985698,150.42174024,13.207,13.195,17.0]
[1672935985906,150.42174024,13.207,13.194,108.8614]
[1672935986117,13.01,13.2,13.194,108.8614]
[1672935986339,13.01,13.2,13.19,56.9]
[1672935986549,13.01,13.2,13.191,20.0]
[1672935986759,13.01,13.2,13.192,56.9]
[1672935986973,13.01,13.2,13.193,20.0]
[1672935987192,13.01,13.2,13.194,56.89]
[1672935987387,13.01,13.2,13.195,17.0]
[1672935987715,206.76196105,13.207,13.195,17.0]
[1672935989590,150.42174024,13.207,13.195,17.0]
[1672935990010,93.59174024,13.207,13.195,17.0]
[1672935990861,93.59174024,13.207,13.195,131.6691]
[1672935992858,149.93196105,13.207,13.195,131.6691]
[1672935993057,20.0,13.205,13.195,131.6691]
[1672935993603,42.41737149,13.205,13.194,117.944]
[1672935993810,12.99,13.2,13.194,117.944]
[1672935994141,12.99,13.2,13.193,20.0]
[1672935994335,12.99,13.2,13.191,20.0]
[1672935994538,12.99,13.2,13.192,56.9]
[1672935994739,12.99,13.2,13.193,20.0]
[1672935994949,12.99,13.2,13.193,76.89]
[1672935995159,12.99,13.2,13.194,17.0]
[1672935995387,20.0,13.205,13.195,56.88]
[1672935995595,20.0,13.205,13.196,17.0]
[1672935996308,20.0,13.205,13.195,17.0]
[1672935997164,20.0,13.206,13.195,17.0]
[1672935999142,42.41737149,13.206,13.195,17.0]
[1672935999465,20.0,13.204,13.195,17.0]
[1672936000626,20.0,13.204,13.189,56.91]
[1672936000838,12.92,13.2,13.189,56.91]
[1672936001152,12.92,13.2,13.19,17.0]
[1672936001481,12.92,13.2,13.191,56.9]
[1672936001693,12.92,13.2,13.192,17.0]
[1672936002219,51.17436875,13.207,13.193,56.89]
[1672936002433,168.9738,13.209,13.194,37.0]
[1672936002627,168.9738,13.209,13.195,56.88]
[1672936002965,168.9738,13.209,13.197,20.0]
[1672936003158,112.1538,13.209,13.198,17.0]
[1672936003369,191.39117149,13.209,13.198,17.0]
[1672936003789,191.39117149,13.209,13.197,17.0]
[1672936004651,168.9738,13.209,13.198,20.0]
[1672936004963,112.1538,13.209,13.199,17.0]
[1672936005161,13.01,13.21,13.2,20.0]
[1672936005360,13.01,13.21,13.201,17.0]
[1672936006643,13.01,13.21,13.201,73.86]
[1672936006853,56.8,13.215,13.201,73.86]
[1672936007166,117.0608,13.218,13.203,20.0]
[1672936007167,56.79,13.217,13.203,20.0]
[1672936007379,56.79,13.217,13.205,20.0]
[1672936007694,22.41737149,13.216,13.206,17.0]
[1672936008094,22.41737149,13.216,13.204,56.84]
[1672936008418,22.41737149,13.216,13.205,17.0]
[1672936008740,22.41737149,13.216,13.205,20.0]
[1672936008950,22.41737149,13.216,13.206,17.0]
[1672936009561,22.41737149,13.216,13.205,17.0]
[1672936010403,56.79,13.217,13.205,17.0]
[1672936010628,117.0608,13.218,13.205,17.0]
[1672936010830,79.19737149,13.219,13.206,56.84]
[1672936011043,56.78,13.219,13.208,20.0]
[1672936011581,79.19737149,13.219,13.209,17.0]
[1672936012214,79.19737149,13.219,13.208,17.0]
[1672936012401,56.78,13.219,13.208,17.0]
[1672936012616,13.05,13.22,13.208,17.0]
[1672936013050,56.78,13.219,13.207,170.779]
[1672936013366,35.46737149,13.22,13.207,113.949]
[1672936013577,13.05,13.22,13.208,20.0]
[1672936013785,13.05,13.22,13.208,76.83]
[1672936014422,13.05,13.22,13.209,17.0]
[1672936015159,13.05,13.22,13.21,20.0]
[1672936015473,13.05,13.22,13.211,17.0]
[1672936019880,13.05,13.22,13.211,20.0]
[1672936020087,13.05,13.22,13.212,17.0]
[1672936021685,69.82,13.22,13.212,17.0]
[1672936021873,13.05,13.22,13.212,17.0]
[1672936023856,13.05,13.22,13.211,17.0]
[1672936025141,56.75,13.225,13.211,17.0]
[1672936025462,20.0,13.224,13.211,17.0]
[1672936025675,20.0,13.224,13.212,56.81]
[1672936025882,20.0,13.224,13.214,20.0]
[1672936026096,20.0,13.224,13.215,17.0]
[1672936028084,76.75,13.225,13.215,17.0]
[1672936028282,96.75,13.225,13.214,17.0]
[1672936028498,20.0,13.224,13.211,56.81]
[1672936028917,20.0,13.222,13.21,56.82]
[1672936030090,20.0,13.222,13.211,17.0]
[1672936030495,191.83697149,13.223,13.211,17.0]
[1672936030709,56.76,13.224,13.212,56.81]
[1672936030913,56.76,13.224,13.213,17.0]
[1672936031344,62.41737149,13.225,13.212,73.81]
[1672936031345,119.16737149,13.225,13.212,73.81]
[1672936032090,76.75,13.225,13.212,73.81]
[1672936032283,76.75,13.225,13.213,20.0]
[1672936032492,76.75,13.225,13.214,17.0]
[1672936034378,22.41737149,13.229,13.214,17.0]
[1672936034379,56.74,13.229,13.215,56.8]
[1672936034588,56.74,13.229,13.216,20.0]
[1672936034822,56.74,13.229,13.217,17.0]
[1672936035234,56.74,13.229,13.202,34.3652]
[1672936035235,125.81288607,13.228,13.202,34.3652]
[1672936035434,20.0,13.226,13.202,134.3844]
[1672936035644,65.2,13.22,13.202,134.3844]
[1672936035849,20.0,13.218,13.203,56.85]
[1672936036062,56.79,13.217,13.203,56.85]
[1672936037005,79.20737149,13.217,13.203,56.85]
[1672936037214,20.0,13.216,13.203,56.85]
[1672936037421,12.96,13.21,13.204,20.0]
[1672936037747,12.96,13.21,13.202,56.85]
[1672936037959,12.96,13.21,13.199,56.86]
[1672936039115,12.96,13.21,13.2,20.0]
[1672936039318,12.96,13.21,13.201,17.0]
[1672936040292,12.96,13.21,13.199,56.86]
[1672936040474,12.96,13.21,13.197,56.87]
[1672936041526,12.96,13.21,13.198,20.0]
[1672936041737,12.96,13.21,13.199,56.86]
[1672936043012,12.96,13.21,13.201,20.0]
[1672936043330,12.96,13.21,13.202,17.0]
[1672936043838,12.96,13.21,13.201,17.0]
[1672936044274,12.96,13.21,13.2,17.0]
[1672936046580,12.96,13.21,13.199,17.0]
[1672936046894,12.96,13.21,13.2,56.86]
[1672936047108,12.96,13.21,13.201,17.0]
[1672936052159,12.96,13.21,13.2,73.86]
[1672936053312,12.96,13.21,13.2,17.0]
[1672936053522,12.96,13.21,13.199,17.0]
[1672936053720,12.96,13.21,13.2,56.86]
[1672936053936,12.96,13.21,13.201,17.0]
[1672936055205,12.96,13.21,13.2,73.86]
[1672936055418,12.96,13.21,13.201,17.0]
[1672936055614,12.96,13.21,13.199,20.0]
[1672936055942,12.96,13.21,13.2,73.86]
[1672936056141,12.96,13.21,13.2,17.0]
[1672936056353,12.96,13.21,13.199,17.0]
[1672936056667,12.96,13.21,13.2,56.86]
[1672936056867,12.96,13.21,13.199,20.0]
[1672936057083,12.96,13.21,13.2,56.86]
[1672936057292,12.96,13.21,13.198,56.87]
[1672936057504,12.96,13.21,13.199,20.0]
[1672936057714,12.96,13.21,13.2,56.86]
[1672936057936,12.96,13.21,13.198,56.87]
[1672936059490,12.96,13.21,13.199,17.0]
[1672936060352,12.96,13.21,13.2,56.86]
[1672936060567,12.96,13.21,13.201,17.0]
[1672936061090,113.9269,13.215,13.202,76.85]
[1672936061305,20.0,13.214,13.203,17.0]
[1672936061707,20.0,13.214,13.204,56.84]
[1672936061917,20.0,13.214,13.205,17.0]
[1672936062126,56.79,13.217,13.205,17.0]
[1672936062338,20.0,13.218,13.206,56.83]
[1672936062549,20.0,13.218,13.207,17.0]
[1672936062972,20.0,13.218,13.206,17.0]
[1672936063187,20.0,13.218,13.205,17.0]
[1672936068251,56.78,13.219,13.205,17.0]
[1672936068452,56.78,13.219,13.207,20.0]
[1672936068645,56.78,13.219,13.208,17.0]
[1672936069063,207.29577149,13.22,13.208,17.0]
[1672936070757,207.29577149,13.22,13.208,73.83]
[1672936070961,207.29577149,13.22,13.208,17.0]
[1672936071592,207.29577149,13.22,13.207,17.0]
[1672936073376,184.8784,13.22,13.208,20.0]
[1672936073584,184.8784,13.22,13.209,17.0]
[1672936074323,20.0,13.219,13.209,17.0]
[1672936076759,184.8784,13.22,13.209,17.0]
[1672936077381,86.86640626,13.219,13.204,58.72057905]
[1672936077595,13.01,13.21,13.198,20.0]
[1672936078016,13.01,13.21,13.2,20.0]
[1672936078642,13.01,13.21,13.198,76.87]
[1672936078974,13.01,13.21,13.199,17.0]
[1672936079707,13.01,13.21,13.198,76.87]
[1672936080743,13.01,13.21,13.198,56.87]
[1672936080969,33.01,13.21,13.197,119.7921]
[1672936081281,89.83,13.21,13.198,56.87]
[1672936082024,33.01,13.21,13.198,56.87]
[1672936082210,89.83,13.21,13.196,56.88]
[1672936084017,89.83,13.21,13.197,17.0]
[1672936085145,20.0,13.209,13.197,17.0]
[1672936086630,20.0,13.209,13.198,56.87]
[1672936086846,33.01,13.21,13.199,17.0]
[1672936087479,33.01,13.21,13.198,17.0]
[1672936087888,33.01,13.21,13.197,17.0]
[1672936088216,33.01,13.21,13.195,19.8145629]
[1672936088217,20.0,13.209,13.194,56.89]
[1672936088427,56.83,13.208,13.194,56.89]
[1672936088620,20.0,13.207,13.194,56.89]
[1672936088825,13.01,13.2,13.189,190.9189629]
[1672936089049,13.01,13.2,13.189,171.1044]
[1672936089470,56.84,13.204,13.189,171.1044]
[1672936089684,20.0,13.203,13.189,190.9189629]
[1672936090217,20.0,13.203,13.19,20.0]
[1672936090412,54.28640626,13.206,13.191,56.9]
[1672936090627,56.83,13.208,13.191,76.7145629]
[1672936090821,56.83,13.208,13.193,20.0]
[1672936091043,56.83,13.208,13.194,73.89]
[1672936091257,20.0,13.207,13.194,73.89]
[1672936091460,56.83,13.206,13.194,17.0]
[1672936091674,20.0,13.205,13.193,17.0]
[1672936091895,20.0,13.205,13.194,20.0]
[1672936092108,20.0,13.205,13.195,17.0]
[1672936094005,56.83,13.206,13.195,17.0]
[1672936094318,20.0,13.207,13.195,17.0]
[1672936097055,20.0,13.205,13.195,17.0]